bitfinex/quotes_SOLUSD_20240628
["timestamp","ask_amount","ask_price","bid_price","bid_amount"]
[1719545079975,12.42,147.12,147.04,20.8248637]
[1719545080186,12.42,147.12,147.06,12.42]
[1719545081077,12.42,147.12,147.04,20.8248637]
[1719545081282,12.42,147.11,147.05,12.42]
[1719545082006,12.42,147.11,147.04,20.8248637]
[1719545082182,12.42,147.11,147.05,12.42]
[1719545082782,6.7963,147.14,147.06,12.42]
[1719545082982,12.42,147.12,147.06,12.42]
[1719545083208,12.42,147.11,147.06,12.42]
[1719545084685,12.42,147.11,147.04,20.8248637]
[1719545085896,12.42,147.1,147.05,12.42]
[1719545087188,12.42,147.1,147.04,20.8248637]
[1719545087386,12.42,147.1,147.04,33.2448637]
[1719545088199,12.42,147.14,147.04,0.8248637]
[1719545088416,12.42,147.07,147.04,0.8248637]
[1719545088929,12.42,147.05,147.04,0.3248637]
[1719545089086,12.42,147.06,147.04,0.3248637]
[1719545089602,12.42,147.07,147.04,0.3248637]
[1719545089801,12.42,147.07,147.02,12.42]
[1719545090005,15.7547,147.11,147.04,12.42]
[1719545090211,12.42,147.1,147.04,12.42]
[1719545090697,12.42,147.09,147.04,12.42]
[1719545091023,12.42,147.08,147.03,12.42]
[1719545091729,12.42,147.08,147.02,12.42]
[1719545092073,12.42,147.07,147.01,36.80308122]
[1719545093425,12.42,147.07,147.02,12.42]
[1719545093807,12.42,147.09,147.01,24.38308122]
[1719545094212,12.42,147.09,147.03,12.42]
[1719545094412,22.5523,147.11,147.03,12.42]
[1719545094631,12.42,147.09,147.03,12.42]
[1719545095725,12.42,147.08,147.03,12.42]
[1719545096110,15.7547,147.11,147.01,24.38308122]
[1719545096298,12.42,147.06,147.01,24.38308122]
[1719545096499,12.42,147.06,147.01,36.80308122]
[1719545096929,12.42,147.07,147.01,36.80308122]
[1719545097609,12.42,147.07,147.02,12.42]
[1719545098819,12.42,147.07,147.01,36.80308122]
[1719545101834,12.42,147.06,147.01,36.80308122]
[1719545102709,12.42,147.06,147.01,24.38308122]
[1719545102931,12.42,147.05,147.0,15.9866]
[1719545103207,12.42,147.04,147.0,15.9866]
[1719545103836,6.7995,147.07,147.0,15.9866]
[1719545104054,12.42,147.04,147.0,15.9866]
[1719545108543,12.42,147.04,146.98,6.3764]
[1719545108726,12.42,147.04,146.98,18.7964]
[1719545109342,12.42,147.03,146.98,18.7964]
[1719545109520,6.8,147.06,146.98,18.7964]
[1719545109720,12.42,147.04,146.98,18.7964]
[1719545110116,12.42,147.04,146.99,12.42]
[1719545111815,12.42,147.07,147.02,12.42]
[1719545112331,19.2196,147.07,147.01,28.9284]
[1719545112510,6.799,147.08,147.01,16.5084]
[1719545112713,12.42,147.07,147.02,12.42]
[1719545114239,12.42,147.07,147.02,13.78017613]
[1719545114621,12.42,147.07,147.02,12.42]
[1719545114823,15.7547,147.11,147.02,12.42]
[1719545115017,12.42,147.07,147.02,12.42]
[1719545115737,19.2196,147.07,147.02,12.42]
[1719545116247,12.42,147.07,147.02,12.42]
[1719545117044,6.7991,147.08,147.02,12.42]
[1719545117045,12.42,147.08,147.02,12.42]
[1719545117218,12.42,147.09,147.03,12.42]
[1719545117423,6.7977,147.11,147.04,13.77993794]
[1719545117647,12.42,147.1,147.04,12.42]
[1719545117941,6.7972,147.12,147.03,6.3236]
[1719545118157,21.9434,147.14,147.03,6.3236]
[1719545118158,12.42,147.13,147.08,12.42]
[1719545118325,19.2167,147.14,147.08,12.42]
[1719545118524,19.2167,147.14,147.08,13.7796594]
[1719545118739,19.2167,147.14,147.08,12.42]
[1719545118935,12.42,147.13,147.08,12.42]
[1719545120048,38.7919,147.18,147.08,12.42]
[1719545120224,12.42,147.13,147.08,12.42]
[1719545120734,12.42,147.14,147.03,22.3746]
[1719545120942,12.42,147.1,147.05,12.42]
[1719545121846,6.7977,147.11,147.03,22.3746]
[1719545122028,12.42,147.1,147.05,12.42]
[1719545128326,6.7966,147.14,147.06,13.77983472]
[1719545128527,25.32238362,147.18,147.08,12.42]
[1719545128749,12.26499403,147.17,147.09,13.77953256]
[1719545128926,21.8054,147.18,147.08,15.3621]
[1719545128927,12.42,147.13,147.08,15.3621]
[1719545129131,6.7962,147.14,147.08,27.7821]
[1719545129335,12.42,147.13,147.08,27.7821]
[1719545129949,12.42,147.13,147.08,15.3621]
[1719545130761,12.42,147.13,147.08,27.7821]
[1719545133452,12.42,147.15,147.1,12.42]
[1719545133644,12.42,147.15,147.09,13.77961236]
[1719545134459,12.42,147.15,147.09,12.42]
[1719545134681,21.8054,147.18,147.08,21.7467]
[1719545134846,12.42,147.12,147.08,15.3621]
[1719545135067,6.7969,147.13,147.08,15.3621]
[1719545135265,49.68,147.14,147.08,15.3621]
[1719545135467,6.7961,147.15,147.08,15.3621]
[1719545135647,12.42,147.12,147.08,15.3621]
[1719545136761,12.42,147.13,147.08,15.3621]
[1719545139363,6.7954,147.16,147.08,27.7821]
[1719545139560,12.42,147.13,147.08,27.7821]
[1719545139756,12.42,147.14,147.09,12.42]
[1719545141370,6.7954,147.16,147.09,12.42]
[1719545141567,3.52879854,147.2,147.12,12.42]
[1719545141776,16.203,147.21,147.1,6.3332]
[1719545141777,12.42,147.18,147.1,6.3332]
[1719545141973,12.42,147.16,147.11,12.42]
[1719545142356,6.7944,147.18,147.1,6.3332]
[1719545142565,12.42,147.16,147.11,12.42]
[1719545144659,12.42,147.17,147.11,12.42]
[1719545146951,72.6761,147.21,147.11,12.42]
[1719545147150,72.6761,147.21,147.12,12.42]
[1719545148978,6.7936,147.2,147.12,12.42]
[1719545149150,6.7936,147.2,147.11,12.42]
[1719545150085,6.7936,147.2,147.12,12.42]
[1719545150565,6.7936,147.2,147.11,12.42]
[1719545152379,6.7936,147.2,147.1,6.3332]
[1719545152587,6.7936,147.2,147.12,12.42]
[1719545153081,12.42,147.17,147.12,12.42]
[1719545153262,12.42,147.17,147.1,6.3332]
[1719545153466,12.42,147.17,147.12,12.42]
[1719545155074,12.42,147.17,147.1,6.3332]
[1719545155282,12.42,147.17,147.12,12.42]
[1719545156180,28.623,147.21,147.1,6.3332]
[1719545156373,12.42,147.14,147.1,6.3332]
[1719545156812,6.7945,147.18,147.08,15.3621]
[1719545157076,6.7945,147.18,147.1,12.42]
[1719545157279,12.42,147.16,147.1,12.42]
[1719545157654,12.42,147.15,147.1,12.42]
[1719545157866,12.42,147.15,147.09,12.42]
[1719545158063,12.42,147.15,147.08,15.3621]
[1719545158368,12.42,147.13,147.08,27.7821]
[1719545158797,12.42,147.13,147.08,15.3621]
[1719545159296,12.42,147.13,147.08,27.7821]
[1719545159909,12.42,147.14,147.08,27.7821]
[1719545160594,6.7944,147.18,147.09,12.42]
[1719545160789,6.7939,147.19,147.08,15.3621]
[1719545160987,12.42,147.16,147.11,12.42]
[1719545162304,12.42,147.16,147.08,15.3621]
[1719545162473,12.42,147.16,147.1,12.42]
[1719545162673,12.42,147.15,147.1,12.42]
[1719545163704,12.42,147.16,147.11,12.42]
[1719545166600,69.41179854,147.21,147.08,15.3621]
[1719545166601,16.203,147.21,147.08,15.3621]
[1719545166807,19.05574992,147.2,147.09,20.0]
[1719545166997,19.05574992,147.2,147.1,1.35916537]
[1719545166998,12.42,147.17,147.1,1.35916537]
[1719545167301,12.42,147.17,147.09,20.0]
[1719545170407,12.42,147.17,147.1,1.35916684]
[1719545170710,12.42,147.17,147.09,20.0]
[1719545170906,12.42,147.18,147.12,12.42]
[1719545171082,22.996,147.21,147.12,12.42]
[1719545171277,12.42,147.18,147.12,12.42]
[1719545172501,72.676,147.21,147.12,12.42]
[1719545172704,12.42,147.18,147.12,12.42]
[1719545175114,72.676,147.21,147.13,12.42]
[1719545175288,12.42,147.18,147.13,12.42]
[1719545176417,32.15179854,147.21,147.12,12.42]
[1719545176618,12.42,147.17,147.11,12.42]
[1719545177219,12.42,147.17,147.09,20.0]
[1719545177710,12.42,147.17,147.11,12.42]
[1719545177895,12.42,147.16,147.11,12.42]
[1719545178694,6.7935,147.2,147.11,12.42]
[1719545179013,19.05568416,147.19,147.09,20.0]
[1719545179200,12.26168416,147.18,147.11,12.42]
[1719545180005,12.26168416,147.18,147.09,20.0]
[1719545180217,6.794,147.19,147.11,12.42]
[1719545180419,12.26173618,147.18,147.11,12.42]
[1719545180595,3.52879854,147.2,147.11,12.42]
[1719545180596,10.32239854,147.2,147.11,12.42]
[1719545180919,12.26182493,147.19,147.11,12.42]
[1719545181103,12.26182493,147.18,147.11,12.42]
[1719545181411,10.32239854,147.2,147.11,12.42]
[1719545181603,12.26175455,147.19,147.11,12.42]
[1719545181919,12.26175455,147.18,147.09,20.0]
[1719545182091,12.26175455,147.19,147.11,12.42]
[1719545182913,12.42,147.19,147.13,12.42]
[1719545183295,12.42,147.19,147.14,12.42]
[1719545185717,12.42,147.19,147.13,12.42]
[1719545187120,19.73179854,147.21,147.13,12.42]
[1719545187422,24.68066307,147.2,147.15,12.42]
[1719545187608,12.42,147.2,147.15,12.42]
[1719545187806,6.0296,147.22,147.15,12.42]
[1719545187807,12.42,147.21,147.15,12.42]
[1719545187995,12.25939385,147.2,147.15,12.42]
[1719545188192,3.52879854,147.23,147.15,12.42]
[1719545188402,12.42,147.21,147.11,15.59]
[1719545188700,24.67913595,147.2,147.12,20.0]
[1719545189035,10.32099854,147.23,147.12,20.0]
[1719545189036,10.32099854,147.23,147.15,12.42]
[1719545189220,12.42,147.2,147.15,12.42]
[1719545190730,12.42,147.21,147.15,12.42]
[1719545196446,12.42,147.2,147.15,12.42]
[1719545198326,12.42,147.2,147.12,20.0]
[1719545198636,12.42,147.2,147.15,12.42]
[1719545198833,12.42,147.2,147.12,20.0]
[1719545199024,12.42,147.2,147.15,12.42]
[1719545199443,12.42,147.21,147.15,12.42]
[1719545199624,12.42,147.2,147.15,12.42]
[1719545202760,12.42,147.21,147.16,12.42]
[1719545203830,3.52879854,147.23,147.16,12.42]
[1719545204031,12.42,147.21,147.16,12.42]
[1719545204847,3.52879854,147.23,147.17,12.42]
[1719545205142,3.52879854,147.23,147.16,15.4991]
[1719545205143,12.42,147.23,147.16,15.4991]
[1719545205441,12.25801403,147.22,147.17,12.42]
[1719545205654,12.42,147.23,147.17,12.42]
[1719545206029,12.42,147.2,147.12,36.0228]
[1719545206220,12.42,147.19,147.14,12.42]
[1719545206573,6.7931,147.21,147.12,16.0228]
[1719545206727,12.42,147.18,147.13,20.0]
[1719545206927,12.42,147.16,147.13,20.0]
[1719545207736,12.42,147.16,147.12,16.0228]
[1719545208034,12.42,147.15,147.09,12.42]
[1719545208237,12.42,147.15,147.1,32.42]
[1719545210341,12.42,147.16,147.1,32.42]
[1719545211342,12.42,147.16,147.1,20.0]
[1719545211554,12.42,147.16,147.08,20.0]
[1719545214086,12.42,147.16,147.11,12.42]
[1719545217158,3.52879854,147.19,147.11,12.42]
[1719545217359,12.42,147.16,147.1,12.42]
[1719545217655,12.42,147.16,147.11,20.0]
[1719545218543,12.42,147.16,147.08,20.0]
[1719545225445,9.92543025,147.21,147.15,12.42]
[1719545225655,6.3818,147.21,147.16,12.42]
[1719545225852,18.8018,147.21,147.16,12.42]
[1719545228346,6.3818,147.21,147.16,12.42]
[1719545230944,27.6834,147.23,147.17,13.77884534]
[1719545231371,27.6834,147.23,147.17,12.42]
[1719545233486,27.6834,147.23,147.14,12.42]
[1719545233678,12.25901934,147.22,147.15,20.0]
[1719545233874,12.42,147.21,147.15,32.42]
[1719545235192,12.42,147.21,147.16,12.42]
[1719545236790,12.42,147.22,147.16,12.42]
[1719545238388,12.42,147.22,147.17,12.42]
[1719545238595,15.2634,147.23,147.17,12.42]
[1719545238790,27.6834,147.23,147.17,12.42]
[1719545239003,27.6834,147.23,147.18,1.35868891]
[1719545239786,27.6834,147.23,147.17,12.42]
[1719545242972,12.42,147.23,147.18,12.42]
[1719545243307,12.42,147.24,147.18,12.42]
[1719545244892,12.42,147.22,147.17,12.42]
[1719545245088,12.42,147.22,147.15,20.0]
[1719545245395,12.42,147.22,147.17,12.42]
[1719545245980,12.42,147.22,147.13,20.0]
[1719545246299,12.42,147.22,147.17,12.42]
[1719545249499,6.7916,147.24,147.13,20.0]
[1719545249708,12.42,147.2,147.15,12.42]
[1719545250013,12.42,147.2,147.16,20.0]
[1719545251689,12.42,147.2,147.15,12.42]
[1719545251887,12.42,147.2,147.12,21.63716357]
[1719545252074,15.6614,147.22,147.12,16.1103]
[1719545252276,12.42,147.18,147.13,32.42]
[1719545252499,12.42,147.19,147.14,12.42]
[1719545252800,12.42,147.2,147.14,12.42]
[1719545252976,12.42,147.2,147.15,12.42]
[1719545253379,15.6614,147.22,147.13,20.0]
[1719545253581,12.42,147.2,147.15,12.42]
[1719545254794,12.42,147.2,147.14,12.42]
[1719545255002,12.42,147.19,147.14,12.42]
[1719545257391,15.6614,147.22,147.14,12.42]
[1719545257612,12.42,147.19,147.14,12.42]
[1719545257998,12.42,147.2,147.14,12.42]
[1719545260805,15.6614,147.22,147.14,12.42]
[1719545261008,12.42,147.2,147.14,12.42]
[1719545261422,12.42,147.19,147.14,12.42]
[1719545261717,12.42,147.2,147.14,12.42]
[1719545268721,12.42,147.15,147.09,15.7201]
[1719545269029,12.42,147.13,147.09,15.7201]
[1719545269320,12.42,147.13,147.07,12.42]
[1719545269702,12.42,147.12,147.07,12.42]
[1719545270396,12.42,147.11,147.06,12.42]
[1719545270804,12.42,147.14,147.01,30.37275937]
[1719545271024,12.42,147.14,147.02,20.0]
[1719545271025,12.42,147.09,147.02,20.0]
[1719545271260,12.42,147.07,147.02,32.42]
[1719545271803,12.42,147.08,147.03,12.42]
[1719545273026,12.42,147.11,147.05,12.42]
[1719545273203,65.5538,147.14,147.04,12.42]
[1719545273204,12.42,147.1,147.04,12.42]
[1719545273522,12.42,147.09,147.04,12.42]
[1719545273727,12.42,147.08,147.03,12.42]
[1719545274499,12.42,147.1,147.04,12.42]
[1719545274696,72.3501,147.14,147.04,12.42]
[1719545275007,72.3501,147.14,147.05,12.42]
[1719545275008,65.5538,147.14,147.05,12.42]
[1719545275208,15.8738,147.14,147.06,12.42]
[1719545275419,12.42,147.12,147.06,12.42]
[1719545275616,12.42,147.11,147.06,12.42]
[1719545276001,12.42,147.11,147.05,12.42]
[1719545276330,12.42,147.08,147.03,12.42]
[1719545276517,12.42,147.08,147.04,20.0]
[1719545276705,12.42,147.09,147.04,20.0]
[1719545278425,12.42,147.09,147.04,12.42]
[1719545278935,12.42,147.09,147.03,12.42]
[1719545280205,12.42,147.09,147.04,12.42]
[1719545283437,72.3501,147.14,147.04,12.42]
[1719545283629,12.42,147.11,147.05,12.42]
[1719545284005,12.42,147.11,147.06,12.42]
[1719545284225,15.8738,147.14,147.06,12.42]
[1719545284432,15.8738,147.14,147.07,12.42]
[1719545284601,21.4111,147.18,147.1,12.42]
[1719545284839,21.4111,147.18,147.11,13.77918922]
[1719545285028,21.4111,147.18,147.12,12.42]
[1719545285029,15.358,147.18,147.12,12.42]
[1719545285326,27.778,147.18,147.13,12.42]
[1719545285517,12.42,147.18,147.13,12.42]
[1719545286113,12.42,147.19,147.13,12.42]
[1719545288213,6.7916,147.24,147.15,12.42]
[1719545288424,12.42,147.2,147.15,12.42]
[1719545288732,12.42,147.2,147.14,12.42]
[1719545288912,12.42,147.19,147.14,12.42]
[1719545289233,6.7936,147.2,147.12,15.4011]
[1719545289531,12.42,147.17,147.09,6.0333]
[1719545289724,12.42,147.15,147.1,20.0]
[1719545290048,12.42,147.15,147.1,12.42]
[1719545291323,12.42,147.16,147.11,12.42]
[1719545292840,12.42,147.15,147.1,12.42]
[1719545295529,28.749,147.2,147.1,12.42]
[1719545295722,12.42,147.15,147.1,12.42]
[1719545296433,12.42,147.16,147.1,12.42]
[1719545297027,12.42,147.16,147.09,6.0333]
[1719545297441,12.42,147.16,147.1,12.42]
[1719545301151,12.42,147.13,147.08,28.6684]
[1719545301349,12.42,147.13,147.09,20.0]
[1719545301669,12.42,147.14,147.09,20.0]
[1719545301843,12.42,147.13,147.09,20.0]
[1719545302241,12.42,147.13,147.08,16.2484]
[1719545302856,12.42,147.12,147.08,16.2484]
[1719545304192,12.42,147.13,147.08,16.2484]
[1719545304667,12.42,147.12,147.08,16.2484]
[1719545305364,12.42,147.13,147.08,16.2484]
[1719545305862,12.42,147.14,147.08,28.6684]
[1719545306342,12.42,147.14,147.09,12.42]
[1719545307445,12.42,147.14,147.08,28.6684]
[1719545307986,12.42,147.14,147.09,12.42]
[1719545309301,12.42,147.28,147.15,6.813]
[1719545309589,12.42,147.3,147.24,12.42]
[1719545309767,12.42,147.29,147.17,1.35802189]
[1719545310090,12.42,147.26,147.2,12.42]
[1719545310390,12.42,147.23,147.17,32.42]
[1719545310568,3.52840316,147.32,147.2,12.42]
[1719545310764,12.25415887,147.31,147.21,12.42]
[1719545310957,12.42,147.27,147.21,12.42]
[1719545311862,6.788,147.32,147.22,12.42]
[1719545312065,12.42,147.27,147.22,12.42]
[1719545312660,31.638,147.32,147.17,20.0]
[1719545317091,24.85,147.32,147.17,20.0]
[1719545317291,22.411,147.35,147.19,24.85]
[1719545317499,22.411,147.35,147.2,37.43637689]
[1719545317874,29.1979,147.35,147.2,37.43637689]
[1719545318192,6.7871,147.34,147.21,6.6267]
[1719545318410,6.7871,147.34,147.22,21.35789239]
[1719545319689,22.411,147.35,147.22,21.35789239]
[1719545320789,6.787,147.34,147.22,21.35789239]
[1719545321194,6.787,147.34,147.22,20.0]
[1719545321898,6.787,147.34,147.23,1.35795012]
[1719545324175,22.411,147.35,147.23,1.35795012]
[1719545325205,6.7855,147.38,147.25,6.3758]
[1719545325377,6.7861,147.36,147.26,21.35761717]
[1719545325582,6.7859,147.37,147.27,1.35773258]
[1719545325895,6.7861,147.36,147.27,1.35773258]
[1719545326502,6.7866,147.35,147.27,1.35773258]
[1719545326805,24.85,147.38,147.26,1.35786603]
[1719545327676,6.7866,147.35,147.26,1.35786603]
[1719545330207,7.08836778,147.39,147.27,21.7897]
[1719545330387,0.8248637,147.4,147.28,21.35757824]
[1719545330781,6.7853,147.38,147.28,21.35757824]
[1719545331185,0.8248637,147.4,147.28,21.35757824]
[1719545331186,0.8248637,147.4,147.29,22.6364]
[1719545331372,0.8248637,147.4,147.3,21.35711139]
[1719545332188,0.8248637,147.4,147.3,20.0]
[1719545332382,0.8248637,147.4,147.3,44.85]
[1719545332582,0.8248637,147.4,147.32,21.8514]
[1719545333000,0.8248637,147.4,147.33,1.35706038]
[1719545334292,0.8248637,147.4,147.32,21.8514]
[1719545334704,0.8248637,147.4,147.33,1.35705774]
[1719545336810,0.8248637,147.4,147.36,12.4]
[1719545337103,0.8248637,147.4,147.36,4.52565337]
[1719545338899,0.8248637,147.4,147.37,12.4]
[1719545341917,0.8248637,147.4,147.38,1.35666286]
[1719545342108,0.8248637,147.4,147.38,13.75666286]
[1719545342687,0.8248637,147.4,147.38,12.4]
[1719545343320,0.8248637,147.4,147.37,12.4]
[1719545343688,0.8248637,147.4,147.34,20.0]
[1719545343689,0.8248637,147.4,147.36,12.4]
[1719545343996,0.8248637,147.4,147.37,13.7569233]
[1719545344192,0.8248637,147.4,147.35,1.35692291]
[1719545344502,0.8248637,147.4,147.37,12.4]
[1719545347494,0.8248637,147.4,147.38,1.35681619]
[1719545348316,0.8248637,147.4,147.38,13.75681619]
[1719545348609,0.8248637,147.4,147.38,12.4]
[1719545348801,0.8248637,147.4,147.37,12.4]
[1719545349194,0.8248637,147.4,147.38,13.75644633]
[1719545349519,0.8248637,147.4,147.39,1.35676445]
[1719545350517,21.8362,147.48,147.39,13.75676445]
[1719545350694,21.8362,147.48,147.38,21.2378]
[1719545350695,21.8362,147.48,147.4,13.75659796]
[1719545350891,28.6168,147.48,147.41,12.4]
[1719545351120,12.4,147.46,147.41,12.4]
[1719545351326,28.6168,147.48,147.42,1.35655139]
[1719545351327,21.8362,147.48,147.42,1.35655139]
[1719545351495,12.4,147.46,147.42,1.35655139]
[1719545351816,12.4,147.46,147.41,12.4]
[1719545351995,16.2057,147.51,147.42,1.35646608]
[1719545352198,12.4,147.47,147.42,13.75646608]
[1719545352399,12.4,147.47,147.41,12.4]
[1719545352607,12.4,147.46,147.41,12.4]
[1719545352920,12.4,147.45,147.39,12.4]
[1719545353896,12.4,147.45,147.4,13.75660282]
[1719545355053,12.4,147.46,147.41,1.3565803]
[1719545356919,6.7806,147.48,147.41,13.7565803]
[1719545357125,12.4,147.47,147.41,12.4]
[1719545358520,12.4,147.46,147.4,12.4]
[1719545360912,12.4,147.47,147.42,12.4]
[1719545361218,12.4,147.47,147.43,1.35631088]
[1719545361390,22.9852,147.51,147.43,1.35631088]
[1719545361595,12.4,147.47,147.43,1.35631088]
[1719545362005,12.4,147.47,147.42,12.4]
[1719545362190,12.4,147.47,147.41,12.4]
[1719545362388,6.7802,147.49,147.42,12.4]
[1719545362591,12.4,147.47,147.42,12.4]
[1719545362824,12.4,147.47,147.41,12.4]
[1719545363005,12.4,147.47,147.42,1.35642959]
[1719545363204,6.7796,147.5,147.42,1.35642959]
[1719545363403,12.4,147.47,147.42,1.35642959]
[1719545363827,12.4,147.47,147.42,13.75642959]
[1719545364003,12.4,147.47,147.43,1.3564295]
[1719545365510,6.7796,147.5,147.43,1.3564295]
[1719545365700,12.4,147.47,147.43,1.3564295]
[1719545366094,12.4,147.48,147.43,1.3564295]
[1719545367020,12.4,147.48,147.43,13.7564295]
[1719545367320,12.4,147.48,147.44,1.35630932]
[1719545368606,12.4,147.48,147.43,12.4]
[1719545368825,12.4,147.49,147.44,1.35632211]
[1719545369121,6.779,147.52,147.45,16.2168]
[1719545369320,6.779,147.52,147.46,1.35606192]
[1719545369321,12.4,147.52,147.46,1.35606192]
[1719545369530,12.4,147.52,147.46,13.75606192]
[1719545370901,12.4,147.52,147.47,12.4]
[1719545373099,12.4,147.52,147.45,16.2168]
[1719545373424,12.4,147.52,147.46,13.75599025]
[1719545373809,6.7779,147.54,147.46,13.75599025]
[1719545374008,12.4,147.52,147.47,12.4]
[1719545377109,12.4,147.52,147.45,16.2168]
[1719545377311,19.1787,147.52,147.46,12.4]
[1719545377904,19.1787,147.52,147.46,13.75600339]
[1719545378103,19.1787,147.52,147.45,16.2168]
[1719545378633,12.4,147.51,147.45,16.2168]
[1719545379019,12.4,147.51,147.45,17.57284924]
[1719545380231,12.4,147.51,147.46,1.35608735]
[1719545384044,12.4,147.47,147.41,16.5007]
[1719545384241,12.4,147.47,147.42,12.4]
[1719545384642,12.4,147.47,147.41,28.9007]
[1719545385846,12.4,147.45,147.41,16.5007]
[1719545386352,12.4,147.46,147.41,16.5007]
[1719545386649,12.4,147.46,147.41,30.25714682]
[1719545387642,12.4,147.46,147.41,28.9007]
[1719545388015,22.5482,147.5,147.41,30.25723076]
[1719545388219,12.4,147.47,147.41,30.25723076]
[1719545388921,12.4,147.47,147.42,12.4]
[1719545389118,12.4,147.47,147.41,28.9007]
[1719545389751,12.4,147.47,147.41,30.25716548]
[1719545391657,12.4,147.47,147.41,28.9007]
[1719545392157,12.4,147.46,147.41,28.9007]
[1719545392626,12.4,147.46,147.41,16.5007]
[1719545394739,12.4,147.46,147.41,17.85716556]
[1719545394950,12.4,147.46,147.41,30.25716556]
[1719545396829,12.4,147.47,147.41,30.25716556]
[1719545397332,12.4,147.46,147.41,30.25716556]
[1719545397853,12.4,147.47,147.41,30.25716556]
[1719545400768,12.4,147.45,147.41,16.5007]
[1719545401259,12.4,147.46,147.41,16.5007]
[1719545402371,12.4,147.46,147.42,1.35653278]
[1719545403648,12.4,147.46,147.41,16.5007]
[1719545404633,12.4,147.46,147.41,17.85716608]
[1719545404960,12.4,147.46,147.41,16.5007]
[1719545405266,10.31294164,147.49,147.41,16.5007]
[1719545405443,12.4,147.46,147.41,16.5007]
[1719545405969,12.4,147.46,147.41,28.9007]
[1719545407541,12.4,147.46,147.41,30.25714143]
[1719545408373,12.4,147.46,147.41,17.85714143]
[1719545408753,12.4,147.46,147.41,16.5007]
[1719545409779,19.30124164,147.5,147.41,16.5007]
[1719545410073,12.4,147.45,147.41,16.5007]
[1719545410659,15.93274164,147.49,147.41,16.5007]
[1719545410853,12.4,147.46,147.41,16.5007]
[1719545411947,12.4,147.45,147.41,16.5007]
[1719545413789,12.4,147.45,147.35,49.6]
[1719545413790,12.4,147.42,147.36,6.4405]
[1719545414083,12.4,147.42,147.35,15.0094]
[1719545414084,12.4,147.39,147.35,15.0094]
[1719545414381,12.4,147.38,147.35,15.0094]
[1719545416767,12.4,147.36,147.32,6.4405]
[1719545416949,53.13274164,147.42,147.32,6.4405]
[1719545417156,12.4,147.35,147.32,6.4405]
[1719545418980,12.4,147.36,147.32,6.4405]
[1719545419681,12.4,147.35,147.32,6.4405]
[1719545421580,12.4,147.37,147.32,6.4405]
[1719545422451,56.3833,147.42,147.32,6.4405]
[1719545422657,12.4,147.36,147.32,6.4405]
[1719545422957,12.4,147.35,147.31,15.1361]
[1719545423793,12.4,147.32,147.28,21.2591]